Workbook

Sheet паспорт
A1: ПАТ "УКРТРАНСГАЗ" | G1: ПАСПОРТ ФІЗИКО-ХІМІЧНИХ ПОКАЗНИКІВ ПРИРОДНОГО ГАЗУ № 166
A2: Філія "УМГ "КИЇВТРАНСГАЗ" | G2: переданого Чернігівським ЛВУМГ та прийнятого ПАТ "Чернігівгаз", ПАТ "Сумигаз"
A3: Чернігівське ЛВУМГ | G3: Маршрут № 166
A4: Вимірювальна хіміко-аналітична лабораторія
A5: Свідоцтво № 74/2014 чинно до 01.07.2019 р. | K5: по газопроводу "ТУЛА-ШОСТКА-КИЇВ" | V5: за період з | X5: 2017-05-01 | Z5: по | AA5: 2017-05-31
A7: Число місяця | B7: Компонентний склад, % мол. | N7: Фізико-хімічні показники газу обчислені на основі компонентного складу, 101,325 кПа | X7: Температура точки роси за вологою (Р = 3.92 МПа), ºС | Y7: Температура точки роси за вуглеводнями, ºС | Z7: Вміст сірководню, г/м3 | AA7: Вміст меркаптанової сірки, г/м3 | AB7: Вміст механічних домішок, г/м3
N8: Густина абсолютна, кг/м3,при 20 ºС, | O8: Температура вимірювання/згоряння при 20/25°С
B9: метан, С1 | C9: етан, С2 | D9: пропан, С3 | E9: ізо-бутан, і-С4 | F9: н-бутан, н-С4 | G9: нео-пентан, нео-С5 | H9: ізо-пентан, і-С5 | I9: н-пентан, н-С5 | J9: гексани та вищі, С6+ | K9: кисень, О2 | L9: азот, N2 | M9: діоксид вуглецю, CО2 | O9: Теплота згоряння нижча | R9: Теплота згоряння вища | U9: Число Воббе вище
O10: ккал/м3 | P10: МДж/м3 | Q10: кВт⋅год/м3 | R10: ккал/м3 | S10: МДж/м3 | T10: кВт⋅год/м3 | U10: ккал/м3 | V10: МДж/м3 | W10: кВт⋅год/м3
A11: 1 | O11: 8229 | P11: 34.45 | Q11: 9.57 | R11: 9111 | S11: 38.14 | T11: 10.59 | AC11: =SUM(B11:M11)+$K$42+$N$42 -> 0
A12: 2 | O12: 8229 | P12: 34.45 | Q12: 9.57 | R12: 9111 | S12: 38.14 | T12: 10.59 | AC12: 0
A13: 3 | O13: 8229 | P13: 34.45 | Q13: 9.57 | R13: 9111 | S13: 38.14 | T13: 10.59 | AC13: 0 | AD13: =IF(AC13=100,"ОК"," ") -> 
A14: 4 | B14: 89.2301 | C14: 5.1614 | D14: 1.1582 | E14: 0.1224 | F14: 0.2156 | G14: 0.0042 | H14: 0.0576 | I14: 0.0446 | J14: 0.0571 | K14: 0.0043 | L14: 1.6832 | M14: 2.2614 | N14: 0.757 | O14: 8242 | P14: 34.51 | Q14: 9.59 | R14: 9124 | S14: 38.2 | T14: 10.61 | U14: 11510 | V14: 48.19 | W14: 13.39 | X14: -9.4 | Y14: -9.9 | Z14: 0.0001 | AA14: 0.0004 | AB14: відс. | AC14: 100.0001 | AD14: =IF(AC14=100,"ОК"," ") -> 
A15: 5 | O15: 8242 | P15: 34.51 | Q15: 9.59 | R15: 9124 | S15: 38.2 | T15: 10.61 | AC15: 0
A16: 6 | O16: 8242 | P16: 34.51 | Q16: 9.59 | R16: 9124 | S16: 38.2 | T16: 10.61 | AC16: 0
A17: 7 | O17: 8242 | P17: 34.51 | Q17: 9.59 | R17: 9124 | S17: 38.2 | T17: 10.61 | AC17: 0
A18: 8 | O18: 8242 | P18: 34.51 | Q18: 9.59 | R18: 9124 | S18: 38.2 | T18: 10.61 | AC18: =SUM(B18:M18)+$K$42+$N$42 -> 0
A19: 9 | O19: 8242 | P19: 34.51 | Q19: 9.59 | R19: 9124 | S19: 38.2 | T19: 10.61 | AC19: 0
A20: 10 | O20: 8242 | P20: 34.51 | Q20: 9.59 | R20: 9124 | S20: 38.2 | T20: 10.61 | AC20: 0
A21: 11 | B21: 89.3012 | C21: 5.174 | D21: 1.1207 | E21: 0.1204 | F21: 0.2131 | G21: 0.0044 | H21: 0.0547 | I21: 0.0402 | J21: 0.0529 | K21: 0.0039 | L21: 1.612 | M21: 2.3026 | N21: 0.7564 | O21: 8237 | P21: 34.49 | Q21: 9.58 | R21: 9119 | S21: 38.18 | T21: 10.61 | U21: 11508 | V21: 48.18 | W21: 13.38 | X21: -9.6 | Y21: -10.4 | Z21: 0.0001 | AA21: 0.0004 | AB21: відс. | AC21: 100.0001
A22: 12 | O22: 8237 | P22: 34.49 | Q22: 9.58 | R22: 9119 | S22: 38.18 | T22: 10.61 | AC22: 0
A23: 13 | O23: 8237 | P23: 34.49 | Q23: 9.58 | R23: 9119 | S23: 38.18 | T23: 10.61 | AC23: 0
A24: 14 | O24: 8237 | P24: 34.49 | Q24: 9.58 | R24: 9119 | S24: 38.18 | T24: 10.61 | AC24: 0
A25: 15 | O25: 8237 | P25: 34.49 | Q25: 9.58 | R25: 9119 | S25: 38.18 | T25: 10.61 | AC25: 0
A26: 16 | O26: 8237 | P26: 34.49 | Q26: 9.58 | R26: 9119 | S26: 38.18 | T26: 10.61 | AC26: 0
A27: 17 | O27: 8237 | P27: 34.49 | Q27: 9.58 | R27: 9119 | S27: 38.18 | T27: 10.61 | AC27: 0
A28: 18 | B28: 89.3638 | C28: 5.1215 | D28: 1.1489 | E28: 0.1221 | F28: 0.2103 | G28: 0.0037 | H28: 0.0553 | I28: 0.0418 | J28: 0.0552 | K28: 0.0041 | L28: 1.6458 | M28: 2.2277 | N28: 0.7558 | O28: 8241 | P28: 34.51 | Q28: 9.59 | R28: 9123 | S28: 38.2 | T28: 10.61 | U28: 11517 | V28: 48.22 | W28: 13.39 | X28: -9.4 | Y28: -10 | Z28: 0.0001 | AA28: 0.0004 | AB28: відс. | AC28: 100.0002
A29: 19 | O29: 8241 | P29: 34.51 | Q29: 9.59 | R29: 9123 | S29: 38.2 | T29: 10.61 | AC29: 0
A30: 20 | O30: 8241 | P30: 34.51 | Q30: 9.59 | R30: 9123 | S30: 38.2 | T30: 10.61 | AC30: 0 | AD30: =IF(AC30=100,"ОК"," ") -> 
A31: 21 | O31: 8241 | P31: 34.51 | Q31: 9.59 | R31: 9123 | S31: 38.2 | T31: 10.61 | AC31: 0
A32: 22 | O32: 8241 | P32: 34.51 | Q32: 9.59 | R32: 9123 | S32: 38.2 | T32: 10.61 | AC32: 0
A33: 23 | O33: 8241 | P33: 34.51 | Q33: 9.59 | R33: 9123 | S33: 38.2 | T33: 10.61 | AC33: 0 | AD33: =IF(AC33=100,"ОК"," ") -> 
A34: 24 | B34: 89.4789 | C34: 5.0688 | D34: 1.1387 | E34: 0.1212 | F34: 0.2195 | G34: 0.0035 | H34: 0.0554 | I34: 0.0417 | J34: 0.0542 | K34: 0.0033 | L34: 1.6103 | M34: 2.2045 | N34: 0.755 | O34: 8243 | P34: 34.51 | Q34: 9.59 | R34: 9125 | S34: 38.2 | T34: 10.61 | U34: 11524 | V34: 48.25 | W34: 13.4 | X34: -8.6 | Y34: -9.6 | Z34: 0.0001 | AA34: 0.0004 | AB34: відс. | AC34: 100 | AD34: ОК
A35: 25 | O35: 8243 | P35: 34.51 | Q35: 9.59 | R35: 9125 | S35: 38.2 | T35: 10.61 | AC35: 0
A36: 26 | O36: 8243 | P36: 34.51 | Q36: 9.59 | R36: 9125 | S36: 38.2 | T36: 10.61 | AC36: 0
A37: 27 | O37: 8243 | P37: 34.51 | Q37: 9.59 | R37: 9125 | S37: 38.2 | T37: 10.61 | AC37: 0
A38: 28 | O38: 8243 | P38: 34.51 | Q38: 9.59 | R38: 9125 | S38: 38.2 | T38: 10.61 | AC38: 0
A39: 29 | O39: 8243 | P39: 34.51 | Q39: 9.59 | R39: 9125 | S39: 38.2 | T39: 10.61 | AC39: 0
A40: 30 | B40: 89.8293 | C40: 4.8874 | D40: 1.0882 | E40: 0.1185 | F40: 0.206 | G40: 0.0036 | H40: 0.0524 | I40: 0.0403 | J40: 0.0359 | K40: 0.0039 | L40: 1.5971 | M40: 2.1374 | N40: 0.7516 | O40: 8222 | P40: 34.42 | Q40: 9.56 | R40: 9103 | S40: 38.11 | T40: 10.59 | U40: 11524 | V40: 48.25 | W40: 13.4 | X40: -9 | Y40: -10 | Z40: 0.0001 | AA40: 0.0004 | AB40: відс. | AC40: 100
A41: 31 | O41: 8222 | P41: 34.42 | Q41: 9.56 | R41: 9103 | S41: 38.11 | T41: 10.59 | AC41: 0
A42: Рівень одоризації відповідає чинним нормативним документам | O42: =SUMPRODUCT(O11:O41,' розрахунок'!R7:R37)/' розрахунок'!R38 -> 8238.499019 | P42: =SUMPRODUCT(P11:P41,' розрахунок'!R7:R37)/' розрахунок'!R38 -> 34.49508882 | Q42: =SUMPRODUCT(Q11:Q41,' розрахунок'!R7:R37)/' розрахунок'!R38 -> 9.584005513 | R42: =SUMPRODUCT(R11:R41,' розрахунок'!R7:R37)/' розрахунок'!R38 -> 9120.454182 | S42: =SUMPRODUCT(S11:S41,' розрахунок'!R7:R37)/' розрахунок'!R38 -> 38.18508882 | T42: =SUMPRODUCT(T11:T41,' розрахунок'!R7:R37)/' розрахунок'!R38 -> 10.60752616
H43: Середньозважене значення теплоти згоряння:
B45: Начальник управління Чернігівського ЛВУМГ Шутішин В.О. 01.06.2017 р.
C46: Підрозділу підприємства, якому підпорядкована лабораторія | O46: прізвище | R46: підпис | V46: дата
B47: Завідувач лабораторією Лапа І.О. 01.06.2017 р.
C48: Лабораторія, де здійснювалось вимірювання газу | O48: прізвище | R48: підпис | V48: дата
B49: Начальник служби газовимірювання та метрології Макаров О.В. 01.06.2017 р.
C50: Підрозділу, відповідального за облік газу за маршрутом | O50: прізвище | R50: підпис | V50: дата

Sheet розрахунок
A2: Додаток до Паспорту фізико-хімічних показників природного газу по маршруту № 166
A4: Число місяця | B4: Теплота згоряння вища, МДж/м3 | C4: Сумська область | J4: Чернігівська область | R4: Загальний обсяг газу, м3
C5: Обсяг газу переданого за добу, м3
C6: ГРС № 2 м. Шостка | D6: ГРС Пирогівка | E6: ГРС Ямпіль | F6: ГРС Глухів | G6: ГРС Слоут | H6: ГРС Свіса | I6: ГРС Кролевець | J6: ГРС Обмачеве | K6: ГРС Борзна | L6: ГРС Іванівка (Борзнянського району) | M6: ГРС Короп | N6: ГРС Городище | O6: ГРС Бахмач | P6: ГРС Деснянське | Q6: ГРС Вишеньки
A7: 1 | B7: 38.14 | C7: 34936 | D7: 405 | E7: 1719.5479 | F7: 13212.1465 | G7: 2297.23 | H7: 5436.4043 | I7: 6776.5352 | J7: 697 | K7: 3725 | L7: 1149 | M7: 2332 | N7: 351 | O7: 6635 | P7: 2351 | Q7: 194 | R7: =SUM(C7:Q7) -> 82216.8639
A8: 2 | B8: 38.14 | C8: 39314 | D8: 452 | E8: 1989.7142 | F8: 14650.9658 | G8: 2293.5996 | H8: 6070.3735 | I8: 7589.6108 | J8: 762 | K8: 4558 | L8: 1206 | M8: 2631 | N8: 363 | O8: 7529 | P8: 2306 | Q8: 196 | R8: 91911.2639
A9: 3 | B9: 38.14 | C9: 47741 | D9: 390 | E9: 1886.0444 | F9: 14439.3057 | G9: 2282.0554 | H9: 6288.4541 | I9: 7247.3755 | J9: 694 | K9: 4112 | L9: 1032 | M9: 2575 | N9: 348 | O9: 7549 | P9: 2318 | Q9: 223 | R9: 99125.2351
A10: 4 | B10: 38.2 | C10: 48588 | D10: 378 | E10: 2143.8232 | F10: 15083.5117 | G10: 2526.937 | H10: 6821.271 | I10: 8083.4561 | J10: 698 | K10: 4509 | L10: 1045 | M10: 2640 | N10: 330 | O10: 8148 | P10: 2396 | Q10: 250 | R10: 103640.999
A11: 5 | B11: 38.2 | C11: 43629 | D11: 457 | E11: 2148.6641 | F11: 15608.46 | G11: 2447.7644 | H11: 7006.208 | I11: 8610.2861 | J11: 739 | K11: 4100 | L11: 1191 | M11: 2822 | N11: 340 | O11: 7492 | P11: 2481 | Q11: 283 | R11: 99355.3826
A12: 6 | B12: 38.2 | C12: 36566 | D12: 451 | E12: 2045.1973 | F12: 16830.6875 | G12: 2607.9824 | H12: 6746.4463 | I12: 8251.3301 | J12: 770 | K12: 3676 | L12: 1052 | M12: 2856 | N12: 353 | O12: 6998 | P12: 2409 | Q12: 228 | R12: 91840.6436
A13: 7 | B13: 38.2 | C13: 37896 | D13: 442 | E13: 2124.2236 | F13: 16096.6904 | G13: 2300.9529 | H13: 6322.2266 | I13: 6816.0703 | J13: 632 | K13: 3555 | L13: 968 | M13: 2374 | N13: 314 | O13: 6613 | P13: 2316 | Q13: 195 | R13: 88965.1638
A14: 8 | B14: 38.2 | C14: 39836 | D14: 488 | E14: 2433.0325 | F14: 15199.335 | G14: 2615.1123 | H14: 7209.5747 | I14: 8312.5703 | J14: 695 | K14: 4322 | L14: 1187 | M14: 2856 | N14: 337 | O14: 7610 | P14: 2405 | Q14: 268 | R14: 95773.6248
A15: 9 | B15: 38.2 | C15: 50545 | D15: 700 | E15: 3880.2678 | F15: 22544.6055 | G15: 3977.6948 | H15: 11053.5293 | I15: 14019.2471 | J15: 1205 | K15: 5963 | L15: 1583 | M15: 4805 | N15: 502 | O15: 11877 | P15: 2894 | Q15: 499 | R15: 136048.3445
A16: 10 | B16: 38.2 | C16: 63968 | D16: 685 | E16: 4207.5122 | F16: 28027.9102 | G16: 4592.1694 | H16: 11773.2891 | I16: 18549.6387 | J16: 1813 | K16: 7923 | L16: 2247 | M16: 6814 | N16: 927 | O16: 18754 | P16: 3519 | Q16: 683 | R16: 174483.5196
A17: 11 | B17: 38.18 | C17: 68812 | D17: 886 | E17: 5205.8159 | F17: 30036.3164 | G17: 5154.5254 | H17: 14504.4795 | I17: 19746.5313 | J17: 1917 | K17: 8609 | L17: 2271 | M17: 7379 | N17: 974 | O17: 18736 | P17: 4319 | Q17: 738 | R17: 189288.6685
A18: 12 | B18: 38.18 | C18: 56129 | D18: 688 | E18: 3978.4468 | F18: 24634.7598 | G18: 4024.8882 | H18: 11861.5938 | I18: 16011.6396 | J18: 1523 | K18: 7477 | L18: 1900 | M18: 5219 | N18: 715 | O18: 16649 | P18: 3754 | Q18: 519 | R18: 155084.3282
A19: 13 | B19: 38.18 | C19: 60987 | D19: 889 | E19: 5282.7407 | F19: 34764.9766 | G19: 5867.5571 | H19: 13522.1807 | I19: 23472.6328 | J19: 2300 | K19: 9490 | L19: 2716 | M19: 8369 | N19: 1082 | O19: 22803 | P19: 4120 | Q19: 740 | R19: 196406.0879
A20: 14 | B20: 38.18 | C20: 54263 | D20: 618 | E20: 3610.6238 | F20: 24696.7031 | G20: 3980.8257 | H20: 10312.7432 | I20: 15353.1689 | J20: 1300 | K20: 6848 | L20: 1608 | M20: 4764 | N20: 592 | O20: 13970 | P20: 3768 | Q20: 476 | R20: 146161.0647
A21: 15 | B21: 38.18 | C21: 51416 | D21: 386 | E21: 2407.1711 | F21: 17957.5625 | G21: 2916.479 | H21: 7813.8662 | I21: 10076.7031 | J21: 872 | K21: 4596 | L21: 1182 | M21: 3470 | N21: 416 | O21: 9519 | P21: 2722 | Q21: 347 | R21: 116097.7819
A22: 16 | B22: 38.18 | C22: 52768 | D22: 496 | E22: 2916.7366 | F22: 18402.8105 | G22: 3029.7771 | H22: 9232.877 | I22: 10787.2559 | J22: 878 | K22: 4998 | L22: 2558 | M22: 3683 | N22: 422 | O22: 9171 | P22: 2498 | Q22: 442 | R22: 122283.4571
A23: 17 | B23: 38.18 | C23: 56704 | D23: 603 | E23: 3702.887 | F23: 23689.998 | G23: 3777.9832 | H23: 11946.8301 | I23: 13060.6396 | J23: 1111 | K23: 5373 | L23: 1339 | M23: 4054 | N23: 473 | O23: 10376 | P23: 2635 | Q23: 462 | R23: 139308.3379
A24: 18 | B24: 38.2 | C24: 58687 | D24: 666 | E24: 3681.3284 | F24: 22057.1191 | G24: 3740.2222 | H24: 11180.2656 | I24: 15037.2021 | J24: 1187 | K24: 5570 | L24: 1448 | M24: 4054 | N24: 581 | O24: 12786 | P24: 3519 | Q24: 478 | R24: 144672.1374
A25: 19 | B25: 38.2 | C25: 47673 | D25: 505 | E25: 3136.6025 | F25: 20745.8887 | G25: 3494.2996 | H25: 8971.4238 | I25: 12557.2578 | J25: 904 | K25: 4454 | L25: 1544 | M25: 3545 | N25: 476 | O25: 10023 | P25: 2915 | Q25: 356 | R25: 121300.4724
A26: 20 | B26: 38.2 | C26: 41669 | D26: 455 | E26: 2340.8594 | F26: 16436.3027 | G26: 2778.176 | H26: 7572.6992 | I26: 10303.2207 | J26: 835 | K26: 4559 | L26: 1154 | M26: 3218 | N26: 401 | O26: 8414 | P26: 2593 | Q26: 320 | R26: 103049.258
A27: 21 | B27: 38.2 | C27: 44976 | D27: 419 | E27: 2514.1321 | F27: 16866.4766 | G27: 2826.5291 | H27: 7725.8896 | I27: 9163.9385 | J27: 794 | K27: 4307 | L27: 1139 | M27: 3035 | N27: 388 | O27: 8524 | P27: 2410 | Q27: 311 | R27: 105399.9659
A28: 22 | B28: 38.2 | C28: 48048 | D28: 316 | E28: 2061.8213 | F28: 14999.0088 | G28: 2349.0879 | H28: 6594.6904 | I28: 7651.6309 | J28: 659 | K28: 3965 | L28: 974 | M28: 3274 | N28: 301 | O28: 7236 | P28: 2176 | Q28: 258 | R28: 100863.2393
A29: 23 | B29: 38.2 | C29: 43508 | D29: 299 | E29: 1724.787 | F29: 13592.6211 | G29: 2388.9902 | H29: 5986.2373 | I29: 6212.832 | J29: 638 | K29: 3583 | L29: 868 | M29: 2364 | N29: 285 | O29: 6535 | P29: 1919 | Q29: 250 | R29: 90154.4676
A30: 24 | B30: 38.2 | C30: 46073 | D30: 341 | E30: 2073.418 | F30: 14687.6162 | G30: 1830.3413 | H30: 6157.0249 | I30: 7156.3037 | J30: 680 | K30: 4007 | L30: 1010 | M30: 2423 | N30: 295 | O30: 6764 | P30: 2094 | Q30: 245 | R30: 95836.7041
A31: 25 | B31: 38.2 | C31: 38828 | D31: 282 | E31: 1501.5283 | F31: 13065.8447 | G31: 1817.9174 | H31: 5144.0044 | I31: 5738.2271 | J31: 634 | K31: 3510 | L31: 917 | M31: 2229 | N31: 291 | O31: 5859 | P31: 2007 | Q31: 191 | R31: 82015.5219
A32: 26 | B32: 38.2 | C32: 38755 | D32: 360 | E32: 1790.0197 | F32: 12678.0645 | G32: 1976.1456 | H32: 6145.1602 | I32: 6738.3125 | J32: 764 | K32: 4134 | L32: 1060 | M32: 2453 | N32: 326 | O32: 7145 | P32: 2201 | Q32: 313 | R32: 86838.7025
A33: 27 | B33: 38.2 | C33: 35420 | D33: 281 | E33: 1541.7437 | F33: 13079.873 | G33: 1929.3862 | H33: 5451.5552 | I33: 6149.2095 | J33: 660 | K33: 3806 | L33: 2003 | M33: 2446 | N33: 316 | O33: 6847 | P33: 2145 | Q33: 204 | R33: 82279.7676
A34: 28 | B34: 38.2 | C34: 38388 | D34: 284 | E34: 1820.6537 | F34: 14064.6465 | G34: 2063.1553 | H34: 6005.9541 | I34: 6208.3945 | J34: 654 | K34: 3622 | L34: 1811 | M34: 2292 | N34: 306 | O34: 6531 | P34: 2086 | Q34: 203 | R34: 86339.8041
A35: 29 | B35: 38.2 | C35: 42627 | D35: 229 | E35: 1296.5811 | F35: 12320.8857 | G35: 1701.9904 | H35: 4507.9072 | I35: 5036.6074 | J35: 567 | K35: 3510 | L35: 806 | M35: 1967 | N35: 255 | O35: 6229 | P35: 1930 | Q35: 183 | R35: 83166.9718
A36: 30 | B36: 38.11 | C36: 39396 | D36: 203 | E36: 1226.2825 | F36: 11252.0615 | G36: 1648.0598 | H36: 4106.4805 | I36: 4500.1572 | J36: 524 | K36: 3348 | L36: 770 | M36: 1839 | N36: 254 | O36: 6072 | P36: 1838 | Q36: 168 | R36: 77145.0415
A37: 31 | B37: 38.11 | C37: 41674 | D37: 184 | E37: 1100.9789 | F37: 11212.8965 | G37: 1545.0861 | H37: 3906.1196 | I37: 4210.8916 | J37: 525 | K37: 3505 | L37: 940 | M37: 1825 | N37: 242 | O37: 5739 | P37: 1443 | Q37: 176 | R37: 78228.9727
A38: Загальний обсяг газу, м3 | C38: =SUM(C7:C37) -> 1449820 | D38: 14238 | E38: 79493.1857 | F38: 552936.0508 | G38: 88782.921 | H38: 243377.7594 | I38: 309428.8769 | J38: 28631 | K38: 149714 | L38: 42678 | M38: 106607 | N38: 13556 | O38: 295133 | P38: 80487 | Q38: 10399 | R38: =SUM(R7:R37) -> 3465281.794
A39: Енергія, МДж | C39: =SUMPRODUCT(B7:B37,C7:C37) -> 55360486.66 | D39: =SUMPRODUCT(B7:B37,D7:D37) -> 543690.63 | E39: =SUMPRODUCT(B7:B37,E7:E37) -> 3035552.433 | F39: =SUMPRODUCT(B7:B37,F7:F37) -> 21114113.49 | G39: =SUMPRODUCT(B7:B37,G7:G37) -> 3390232.785 | H39: =SUMPRODUCT(B7:B37,H7:H37) -> 9293657.67 | I39: =SUMPRODUCT(B7:B37,I7:I37) -> 11815932.12 | J39: =SUMPRODUCT(B7:B37,J7:J37) -> 1093282.59 | K39: =SUMPRODUCT(B7:B37,K7:K37) -> 5716766.51 | L39: =SUMPRODUCT(B7:B37,L7:L37) -> 1629671 | M39: =SUMPRODUCT(B7:B37,M7:M37) -> 4070866.6 | N39: =SUMPRODUCT(B7:B37,N7:N37) -> 517637.36 | O39: =SUMPRODUCT(B7:B37,O7:O37) -> 11269690.35 | P39: =SUMPRODUCT(B7:B37,P7:P37) -> 3073413.29 | Q39: =SUMPRODUCT(B7:B37,Q7:Q37) -> 397099.58 | R39: =SUMPRODUCT(B7:B37,R7:R37) -> 132322093.1
A40: Теплота згоряння (середньозважене значення за місяць), МДж/м³ | C40: =C39/C38 -> 38.1843861 | D40: 38.18588496 | E40: 38.1863226 | F40: 38.18545283 | G40: 38.18564142 | H40: 38.18614196 | I40: 38.18626186 | J40: 38.18527435 | K40: 38.184582 | L40: 38.1852711 | M40: 38.18573452 | N40: 38.18511065 | O40: 38.1851245 | P40: 38.18521364 | Q40: 38.18632368 | R40: =R39/R38 -> 38.18508882
A41: Теплота згоряння (середньозважене значення за місяць), ккал/м³ | C41: =C40*238.8459 -> 9120.184065 | D41: 9120.54206 | E41: 9120.646588 | F41: 9120.438848 | G41: 9120.483891 | H41: 9120.603443 | I41: 9120.632082 | J41: 9120.39622 | K41: 9120.230855 | L41: 9120.395443 | M41: 9120.506129 | N41: 9120.35712 | O41: 9120.360429 | P41: 9120.381718 | Q41: 9120.646848 | R41: =R40*238.8459 -> 9120.351905
A42: Теплота згоряння (середньозважене значення за місяць), кВт*год./м³ | C42: =C40/3.6 -> 10.60677392 | D42: 10.60719027 | E42: 10.60731183 | F42: 10.60707023 | G42: 10.60712262 | H42: 10.60726165 | I42: 10.60729496 | J42: 10.60702065 | K42: 10.60682833 | L42: 10.60701975 | M42: 10.60714848 | N42: 10.60697518 | O42: 10.60697903 | P42: 10.60700379 | Q42: 10.60731213 | R42: =R40/3.6 -> 10.60696912

Sheet додаток
A2: Додаток до Паспорту фізико-хімічних показників природного газу № 166
A4: Область | B4: ГРС, прямий споживач | C4: Cередньозважене значення вищої теплоти згоряння
C5: МДж/м³ | D5: ккал/м³ | E5: кВт*год./м³
A6: Сумська область | B6: ГРС № 2 м. Шостка | C6: 38.18 | D6: 9120 | E6: 10.61
B7: ГРС Пирогівка | C7: 38.19 | D7: 9121 | E7: 10.61
B8: ГРС Ямпіль | C8: 38.19 | D8: 9121 | E8: 10.61
B9: ГРС Глухів | C9: 38.19 | D9: 9120 | E9: 10.61
B10: ГРС Слоут | C10: 38.19 | D10: 9120 | E10: 10.61
B11: ГРС Свіса | C11: 38.19 | D11: 9121 | E11: 10.61
B12: ГРС Кролевець | C12: 38.19 | D12: 9121 | E12: 10.61
A13: Чернігівська область | B13: ГРС Обмачеве | C13: 38.19 | D13: 9120 | E13: 10.61
B14: ГРС Борзна | C14: 38.18 | D14: 9120 | E14: 10.61
B15: ГРС Іванівка (Борзнянського району) | C15: 38.19 | D15: 9120 | E15: 10.61
B16: ГРС Короп | C16: 38.19 | D16: 9121 | E16: 10.61
B17: ГРС Городище | C17: 38.19 | D17: 9120 | E17: 10.61
B18: ГРС Бахмач | C18: 38.19 | D18: 9120 | E18: 10.61
B19: ГРС Деснянське | C19: 38.19 | D19: 9120 | E19: 10.61
B20: ГРС Вишеньки | C20: 38.19 | D20: 9121 | E20: 10.61
A21: Середньозважене значення вищої теплоти згоряння по маршруту № 166 | C21: 38.19 | D21: 9120 | E21: 10.61
A25: Начальник управління Чернігівського ЛВУМГ | D25: Шутішин В.О. | F25: 01.06.2017 р.
A26: Підрозділу підприємства, якому підпорядкована лабораторія | D26: прізвище | E26: підпис | F26: дата
A27: Завідувач лабораторією | D27: Лапа І.О. | F27: 01.06.2017 р.
A28: Лабораторія, де здійснювалось вимірювання газу | D28: прізвище | E28: підпис | F28: дата
A29: Начальник служби газовимірювання та метрології | D29: Макаров О.В. | F29: 01.06.2017 р.
A30: Підрозділу, відповідального за облік газу за маршрутом | D30: прізвище | E30: підпис | F30: дата

Sheet variablesList (hidden)
A1: 3 | B1: x:\gaysin | C1: 10, 11, 24, 25, 127, 128, 132, 180, 207, 215 | D1: x:\
B2: x:\Illinci
B3: x:\Talne
